[Event "Mistrovství Čech mládeže 2023 - HD14"]
[Site "Harrachov, Czech Republic"]
[Date "2023.10.23"]
[Round "4.9"]
[White "Ježek, Jakub"]
[Black "Jun, Rostislav"]
[Result "1-0"]
[TimeControl "90m + 30s"]
[WhiteElo "1642"]
[BlackElo "1360"]

1. d4 {[%clk 01:30:50]} {[%emt 00:00:10]} d5 {[%clk 01:30:05]} {[%emt
00:00:55]} 2. c4 {[%clk 01:30:32]} {[%emt 00:00:48]} e6 {[%clk 01:30:28]}
{[%emt 00:00:08]} 3. Nf3 {[%clk 01:30:56]} {[%emt 00:00:06]} Nf6 {[%clk
01:30:48]} {[%emt 00:00:10]} 4. g3 {[%clk 01:31:22]} {[%emt 00:00:03]} a6
{[%clk 01:30:10]} {[%emt 00:01:09]} 5. Bg2 {[%clk 01:31:29]} {[%emt 00:00:22]}
c5 {[%clk 01:30:29]} {[%emt 00:00:12]} 6. cxd5 {[%clk 01:31:09]} {[%emt
00:00:50]} exd5 {[%clk 01:30:52]} {[%emt 00:00:07]} 7. O-O {[%clk 01:31:18]}
{[%emt 00:00:21]} Nc6 {[%clk 01:30:21]} {[%emt 00:01:02]} 8. Bf4 {[%clk
01:30:16]} {[%emt 00:01:32]} Bd6 {[%clk 01:30:05]} {[%emt 00:00:45]} 9. e3
{[%clk 01:27:44]} {[%emt 00:03:02]} cxd4 {[%clk 01:29:27]} {[%emt 00:01:08]} 10.
Nxd4 {[%clk 01:27:54]} {[%emt 00:00:20]} O-O {[%clk 01:29:32]} {[%emt
00:00:25]} 11. Nc3 {[%clk 01:27:29]} {[%emt 00:00:55]} Bxf4 {[%clk 01:27:53]}
{[%emt 00:02:09]} 12. gxf4 {[%clk 01:26:50]} {[%emt 00:01:10]} Nxd4 {[%clk
01:28:08]} {[%emt 00:00:15]} 13. Qxd4 {[%clk 01:27:04]} {[%emt 00:00:16]} Ng4
{[%clk 01:25:34]} {[%emt 00:03:04]} 14. h3 {[%clk 01:14:54]} {[%emt 00:12:40]}
Nf6 {[%clk 01:25:41]} {[%emt 00:00:22]} 15. Nxd5 {[%clk 01:13:59]} {[%emt
00:01:24]} Nxd5 {[%clk 01:25:40]} {[%emt 00:00:33]} 16. Qxd5 {[%clk 01:11:15]}
{[%emt 00:03:14]} Qxd5 {[%clk 01:26:08]} {[%emt 00:00:02]} 17. Bxd5 {[%clk
01:11:29]} {[%emt 00:00:14]} Bxh3 {[%clk 01:26:17]} {[%emt 00:00:22]} 18. Bg2
{[%clk 01:09:43]} {[%emt 00:02:15]} Bxg2 {[%clk 01:24:09]} {[%emt 00:02:38]} 19.
Kxg2 {[%clk 01:06:57]} {[%emt 00:03:17]} Rfd8 {[%clk 01:24:14]} {[%emt
00:00:25]} 20. Rfd1 {[%clk 01:07:19]} {[%emt 00:00:08]} Kf8 {[%clk 01:24:15]}
{[%emt 00:00:29]} 21. Rac1 {[%clk 01:06:34]} {[%emt 00:01:15]} Ke8 {[%clk
01:23:41]} {[%emt 00:01:03]} 22. Kf3 {[%clk 01:05:52]} {[%emt 00:01:12]} Rxd1
{[%clk 01:23:20]} {[%emt 00:00:51]} 23. Rxd1 {[%clk 01:06:12]} {[%emt
00:00:11]} Rc8 {[%clk 01:23:43]} {[%emt 00:00:07]} 24. Rd2 {[%clk 01:06:32]}
{[%emt 00:00:10]} g6 {[%clk 01:22:50]} {[%emt 00:01:23]} 25. Kg4 {[%clk
01:06:06]} {[%emt 00:00:55]} h5+ {[%clk 01:18:46]} {[%emt 00:04:34]} 26. Kh4
{[%clk 00:59:51]} {[%emt 00:06:45]} Ke7 {[%clk 01:18:30]} {[%emt 00:00:46]} 27.
f5 {[%clk 00:56:29]} {[%emt 00:03:53]} Rc5 {[%clk 01:15:28]} {[%emt 00:03:32]}
28. fxg6 {[%clk 00:55:32]} {[%emt 00:01:27]} fxg6 {[%clk 01:15:57]} {[%emt
00:00:01]} 29. f4 {[%clk 00:50:27]} {[%emt 00:05:34]} b5 {[%clk 01:08:55]}
{[%emt 00:07:33]} 30. Re2 {[%emt 00:19:24]} a5 {[%clk 01:05:21]} {[%emt
00:04:02]} 31. e4 {[%clk 00:30:50]} {[%emt 00:01:13]} Rc6 {[%clk 00:57:03]}
{[%emt 00:08:49]} 32. Kg5 {[%clk 00:29:52]} {[%emt 00:01:25]} Kf7 {[%clk
00:56:02]} {[%emt 00:01:35]} 33. e5 {[%clk 00:26:52]} {[%emt 00:03:30]} Rb6
{[%clk 00:54:22]} {[%emt 00:02:10]} 34. Rc2 {[%clk 00:26:31]} {[%emt 00:00:48]}
Ke7 {[%clk 00:53:02]} {[%emt 00:01:53]} 35. Rc7+ {[%clk 00:23:07]} {[%emt
00:03:53]} Kf8 {[%clk 00:53:15]} {[%emt 00:00:16]} 36. f5 {[%clk 00:16:52]}
{[%emt 00:06:44]} gxf5 {[%clk 00:53:14]} {[%emt 00:00:33]} 37. Kxh5 {[%clk
00:15:10]} {[%emt 00:02:12]} Ke8 {[%clk 00:49:47]} {[%emt 00:03:57]} 38. Kg5
{[%clk 00:15:08]} {[%emt 00:00:32]} Kd8 {[%clk 00:50:13]} {[%emt 00:00:04]} 39.
Ra7 {[%clk 00:15:29]} {[%emt 00:00:09]} a4 {[%clk 00:50:39]} {[%emt 00:00:05]}
40. Kxf5 {[%clk 00:15:49]} {[%emt 00:00:10]} Ke8 {[%clk 00:50:47]} {[%emt
00:00:22]} 41. e6 {[%clk 00:15:45]} {[%emt 00:00:35]} Rc6 {[%clk 00:51:11]}
{[%emt 00:00:06]} 42. Kf6 {[%clk 00:15:49]} {[%emt 00:00:26]} 1-0

[Event "Mistrovství Čech mládeže 2023 - HD14"]
[Site "Harrachov, Czech Republic"]
[Date "2023.10.23"]
[Round "4.10"]
[White "Jakubše, Tamae Severína"]
[Black "Ocelák, Lukáš"]
[Result "1-0"]
[TimeControl "90m + 30s"]
[WhiteElo "1627"]
[BlackElo "1342"]

1. e4 {[%clk 01:30:57]} {[%emt 00:00:01]} c6 {[%clk 01:30:42]} {[%emt
00:00:18]} 2. d4 {[%clk 01:31:20]} {[%emt 00:00:08]} d5 {[%clk 01:30:49]}
{[%emt 00:00:23]} 3. exd5 {[%clk 01:31:43]} {[%emt 00:00:07]} cxd5 {[%clk
01:31:12]} {[%emt 00:00:07]} 4. c4 {[%clk 01:32:12]} {[%emt 00:00:01]} dxc4
{[%clk 01:23:40]} {[%emt 00:08:02]} 5. Bxc4 {[%clk 01:32:33]} {[%emt 00:00:09]}
e6 {[%clk 01:21:02]} {[%emt 00:03:07]} 6. Nf3 {[%clk 01:32:00]} {[%emt
00:01:02]} Nf6 {[%clk 01:20:26]} {[%emt 00:01:06]} 7. Nc3 {[%clk 01:31:34]}
{[%emt 00:00:56]} Bd6 {[%clk 01:15:40]} {[%emt 00:05:16]} 8. O-O {[%clk
01:30:38]} {[%emt 00:01:25]} O-O {[%clk 01:15:04]} {[%emt 00:01:07]} 9. Bg5
{[%clk 01:29:39]} {[%emt 00:01:28]} Nbd7 {[%clk 01:04:21]} {[%emt 00:11:13]} 10.
Re1 {[%clk 01:21:26]} {[%emt 00:08:43]} h6 {[%clk 00:59:01]} {[%emt 00:05:52]}
11. Bh4 {[%clk 01:17:36]} {[%emt 00:04:19]} b6 {[%clk 00:50:15]} {[%emt
00:09:17]} 12. d5 {[%clk 01:09:05]} {[%emt 00:09:00]} Nc5 {[%clk 00:43:06]}
{[%emt 00:07:39]} 13. Bxf6 {[%clk 00:54:26]} {[%emt 00:15:09]} gxf6 {[%clk
00:30:00]} {[%emt 00:13:36]} 14. b4 {[%clk 00:52:05]} {[%emt 00:02:51]} Nb7
{[%clk 00:24:53]} {[%emt 00:05:37]} 15. a3 {[%clk 00:49:52]} {[%emt 00:02:43]}
e5 {[%clk 00:23:03]} {[%emt 00:02:20]} 16. Bd3 {[%clk 00:45:55]} {[%emt
00:04:26]} Bg4 {[%clk 00:19:40]} {[%emt 00:03:54]} 17. Be2 {[%clk 00:25:02]}
{[%emt 00:21:22]} f5 {[%clk 00:14:26]} {[%emt 00:05:46]} 18. Nd2 {[%clk
00:22:08]} {[%emt 00:03:23]} Qh4 {[%clk 00:09:17]} {[%emt 00:05:39]} 19. Bxg4
{[%clk 00:14:13]} {[%emt 00:08:25]} fxg4 {[%clk 00:08:08]} {[%emt 00:01:39]} 20.
Qe2 {[%clk 00:12:00]} {[%emt 00:02:41]} e4 {[%clk 00:03:39]} {[%emt 00:05:00]}
21. g3 {[%clk 00:11:25]} {[%emt 00:01:05]} Qe7 {[%clk 00:02:08]} {[%emt
00:02:01]} 22. Qxg4+ {[%clk 00:11:05]} {[%emt 00:00:50]} Kh8 {[%clk 00:02:08]}
{[%emt 00:00:31]} 23. Ncxe4 {[%clk 00:07:05]} {[%emt 00:04:30]} Be5 {[%clk
00:01:22]} {[%emt 00:01:16]} 24. Rad1 {[%clk 00:06:34]} {[%emt 00:01:01]} f5
{[%clk 00:00:57]} {[%emt 00:00:55]} 25. Qh5 {[%clk 00:06:07]} {[%emt 00:00:54]}
fxe4 {[%clk 00:00:49]} {[%emt 00:00:41]} 26. Qxh6+ {[%clk 00:06:20]} {[%emt
00:00:17]} Kg8 {[%clk 00:00:43]} {[%emt 00:00:36]} 27. Nxe4 {[%clk 00:05:58]}
{[%emt 00:00:51]} Qf7 {[%clk 00:00:38]} {[%emt 00:00:35]} 28. f4 {[%clk
00:03:34]} {[%emt 00:02:54]} Bg7 {[%clk 00:00:37]} {[%emt 00:00:31]} 29. Qe6
{[%clk 00:02:07]} {[%emt 00:01:56]} Qxe6 {[%clk 00:00:40]} {[%emt 00:00:28]} 30.
dxe6 {[%clk 00:02:35]} {[%emt 00:00:02]} Rfe8 {[%clk 00:00:44]} {[%emt
00:00:27]} 31. f5 {[%clk 00:02:49]} {[%emt 00:00:16]} Kf8 {[%clk 00:00:57]}
{[%emt 00:00:17]} 32. f6 {[%clk 00:02:12]} {[%emt 00:01:07]} Rxe6 {[%clk
00:01:14]} {[%emt 00:00:13]} 33. fxg7+ {[%clk 00:02:27]} {[%emt 00:00:15]} Kxg7
{[%clk 00:01:40]} {[%emt 00:00:04]} 34. Rd7+ {[%clk 00:02:39]} {[%emt
00:00:18]} 1-0

[Event "Mistrovství Čech mládeže 2023 - HD14"]
[Site "Harrachov, Czech Republic"]
[Date "2023.10.23"]
[Round "4.11"]
[White "Petrášek, Jiří"]
[Black "Bludský, Hynek"]
[Result "1/2-1/2"]
[TimeControl "90m + 30s"]
[WhiteElo "1423"]
[BlackElo "1547"]

1. e4 {[%clk 01:30:57]} {[%emt 00:00:02]} c5 {[%clk 01:30:56]} {[%emt
00:00:05]} 2. c3 {[%clk 01:31:17]} {[%emt 00:00:11]} d5 {[%clk 01:29:39]}
{[%emt 00:01:47]} 3. exd5 {[%clk 01:31:34]} {[%emt 00:00:12]} Qxd5 {[%clk
01:30:01]} {[%emt 00:00:09]} 4. d4 {[%clk 01:31:37]} {[%emt 00:00:27]} Nc6
{[%clk 01:29:48]} {[%emt 00:00:42]} 5. Be3 {[%clk 01:31:37]} {[%emt 00:00:30]}
Nf6 {[%clk 01:28:11]} {[%emt 00:02:07]} 6. c4 {[%clk 01:30:17]} {[%emt
00:01:51]} Qd8 {[%clk 01:28:25]} {[%emt 00:00:15]} 7. d5 {[%clk 01:29:02]}
{[%emt 00:01:45]} Ne5 {[%clk 01:28:23]} {[%emt 00:00:29]} 8. Nc3 {[%clk
01:27:57]} {[%emt 00:01:39]} e6 {[%clk 01:27:59]} {[%emt 00:00:54]} 9. Bg5
{[%clk 01:25:16]} {[%emt 00:03:10]} Be7 {[%clk 01:25:41]} {[%emt 00:02:48]} 10.
Qe2 {[%clk 01:19:44]} {[%emt 00:06:03]} Ng6 {[%clk 01:23:22]} {[%emt 00:02:50]}
11. Rd1 {[%clk 01:14:51]} {[%emt 00:05:23]} Qa5 {[%clk 01:20:20]} {[%emt
00:03:32]} 12. d6 {[%clk 01:09:52]} {[%emt 00:05:29]} Bd8 {[%clk 01:19:40]}
{[%emt 00:01:09]} 13. Nf3 {[%clk 01:08:40]} {[%emt 00:01:41]} Bd7 {[%clk
01:18:45]} {[%emt 00:01:25]} 14. Qd2 {[%clk 01:07:13]} {[%emt 00:01:57]} O-O
{[%clk 01:18:00]} {[%emt 00:01:16]} 15. Bd3 {[%clk 01:06:50]} {[%emt 00:00:53]}
Bc6 {[%clk 01:13:04]} {[%emt 00:05:25]} 16. Qe2 {[%clk 00:58:43]} {[%emt
00:08:37]} Nd7 {[%clk 01:11:08]} {[%emt 00:02:27]} 17. Bxd8 {[%clk 00:52:42]}
{[%emt 00:06:31]} Raxd8 {[%clk 01:10:19]} {[%emt 00:01:19]} 18. Bxg6 {[%clk
00:50:56]} {[%emt 00:02:15]} hxg6 {[%clk 01:09:56]} {[%emt 00:00:53]} 19. O-O
{[%clk 00:50:07]} {[%emt 00:01:19]} Qb6 {[%clk 01:00:37]} {[%emt 00:09:50]} 20.
Ng5 {[%clk 00:43:25]} {[%emt 00:07:12]} Nf6 {[%clk 00:57:39]} {[%emt 00:03:27]}
21. Rd2 {[%clk 00:39:48]} {[%emt 00:04:08]} Rd7 {[%clk 00:55:19]} {[%emt
00:02:50]} 22. Rfd1 {[%clk 00:37:38]} {[%emt 00:02:40]} 1/2-1/2

[Event "Mistrovství Čech mládeže 2023 - HD14"]
[Site "Harrachov, Czech Republic"]
[Date "2023.10.23"]
[Round "4.12"]
[White "Tejnor, Martin"]
[Black "Kravchenko, Andrey"]
[Result "1/2-1/2"]
[TimeControl "90m + 30s"]
[WhiteElo "1418"]
[BlackElo "1541"]

1. e4 {[%clk 01:30:55]} {[%emt 00:00:04]} c5 {[%clk 01:30:54]} {[%emt
00:00:06]} 2. Nf3 {[%clk 01:31:18]} {[%emt 00:00:07]} Nc6 {[%clk 01:31:18]}
{[%emt 00:00:06]} 3. d4 {[%clk 01:31:42]} {[%emt 00:00:06]} cxd4 {[%clk
01:31:42]} {[%emt 00:00:06]} 4. Nxd4 {[%clk 01:32:10]} {[%emt 00:00:02]} g6
{[%clk 01:32:03]} {[%emt 00:00:08]} 5. Nc3 {[%clk 01:32:00]} {[%emt 00:00:41]}
Bg7 {[%clk 01:32:27]} {[%emt 00:00:06]} 6. Be3 {[%clk 01:32:26]} {[%emt
00:00:05]} Nf6 {[%clk 01:32:45]} {[%emt 00:00:12]} 7. Be2 {[%clk 01:31:40]}
{[%emt 00:01:15]} O-O {[%clk 01:32:48]} {[%emt 00:00:27]} 8. O-O {[%clk
01:32:04]} {[%emt 00:00:06]} d6 {[%clk 01:33:13]} {[%emt 00:00:05]} 9. h3
{[%clk 01:31:06]} {[%emt 00:01:29]} Bd7 {[%clk 01:32:48]} {[%emt 00:00:53]} 10.
Qd2 {[%clk 01:29:20]} {[%emt 00:02:17]} Nxd4 {[%clk 01:31:13]} {[%emt
00:02:06]} 11. Bxd4 {[%clk 01:29:14]} {[%emt 00:00:35]} Bc6 {[%clk 01:31:31]}
{[%emt 00:00:12]} 12. f3 {[%clk 01:28:29]} {[%emt 00:01:15]} a6 {[%clk
01:28:24]} {[%emt 00:03:36]} 13. Rad1 {[%clk 01:22:10]} {[%emt 00:06:50]} Rc8
{[%clk 01:28:23]} {[%emt 00:00:31]} 14. Rfe1 {[%clk 01:16:48]} {[%emt
00:05:52]} Qc7 {[%clk 01:26:52]} {[%emt 00:02:00]} 15. Qe3 {[%clk 01:13:32]}
{[%emt 00:03:46]} Nd7 {[%clk 01:26:04]} {[%emt 00:01:18]} 16. Bxg7 {[%clk
01:12:32]} {[%emt 00:01:31]} Kxg7 {[%clk 01:26:25]} {[%emt 00:00:09]} 17. Qd4+
{[%clk 01:12:47]} {[%emt 00:00:15]} Kg8 {[%clk 01:26:43]} {[%emt 00:00:10]} 18.
Kh1 {[%clk 01:12:50]} {[%emt 00:00:28]} Nb6 {[%clk 01:16:42]} {[%emt 00:10:30]}
19. Rd2 {[%clk 01:05:28]} {[%emt 00:07:54]} Bd7 {[%clk 01:10:36]} {[%emt
00:06:32]} 20. Nd5 {[%clk 01:02:07]} {[%emt 00:03:53]} Nxd5 {[%clk 01:10:41]}
{[%emt 00:00:26]} 21. exd5 {[%clk 01:01:42]} {[%emt 00:00:56]} Bf5 {[%clk
01:09:59]} {[%emt 00:01:10]} 22. c4 {[%clk 01:01:12]} {[%emt 00:01:03]} Rfe8
{[%clk 01:09:45]} {[%emt 00:00:41]} 23. b3 {[%clk 00:59:29]} {[%emt 00:02:15]}
Rcd8 {[%clk 01:06:22]} {[%emt 00:03:50]} 24. Bf1 {[%clk 00:58:05]} {[%emt
00:01:56]} Rc8 {[%clk 00:56:10]} {[%emt 00:10:39]} 25. Rde2 {[%clk 00:55:39]}
{[%emt 00:03:00]} Rcd8 {[%clk 00:51:55]} {[%emt 00:04:43]} 26. g4 {[%clk
00:54:14]} {[%emt 00:01:57]} Bc8 {[%clk 00:51:24]} {[%emt 00:01:00]} 27. Re3
{[%clk 00:50:29]} {[%emt 00:04:15]} e5 {[%clk 00:46:29]} {[%emt 00:05:26]} 28.
dxe6 {[%emt 00:03:41]} Bxe6 {[%clk 00:46:50]} {[%emt 00:00:08]} 29. f4 {[%clk
00:45:04]} {[%emt 00:02:45]} Bd7 {[%clk 00:45:09]} {[%emt 00:02:09]} 30. Bg2
{[%clk 00:43:17]} {[%emt 00:02:19]} Rxe3 {[%clk 00:44:07]} {[%emt 00:01:32]} 31.
Rxe3 {[%clk 00:42:41]} {[%emt 00:01:06]} Re8 {[%clk 00:44:22]} {[%emt
00:00:14]} 32. Rd3 {[%clk 00:35:46]} {[%emt 00:07:25]} Re1+ {[%clk 00:34:44]}
{[%emt 00:10:07]} 33. Kh2 {[%clk 00:35:51]} {[%emt 00:00:25]} Re2 {[%clk
00:31:49]} {[%emt 00:03:23]} 34. Rd2 {[%clk 00:31:24]} {[%emt 00:05:00]} Rxd2
{[%clk 00:31:42]} {[%emt 00:00:37]} 35. Qxd2 {[%clk 00:31:52]} {[%emt
00:00:01]} Bc6 {[%clk 00:31:54]} {[%emt 00:00:16]} 36. Qe3 {[%clk 00:28:29]}
{[%emt 00:03:54]} Bxg2 {[%emt 00:00:25]} 1/2-1/2

[Event "Mistrovství Čech mládeže 2023 - HD14"]
[Site "Harrachov, Czech Republic"]
[Date "2023.10.23"]
[Round "4.13"]
[White "Pogorelskiy, Boris"]
[Black "Mezera, Antonín"]
[Result "1-0"]
[TimeControl "90m + 30s"]
[WhiteElo "1541"]
[BlackElo "1166"]

1. e4 {[%clk 01:30:57]} {[%emt 00:00:02]} c5 {[%clk 01:30:52]} {[%emt
00:00:07]} 2. Nf3 {[%clk 01:31:22]} {[%emt 00:00:06]} d6 {[%clk 01:31:18]}
{[%emt 00:00:05]} 3. d4 {[%clk 01:31:40]} {[%emt 00:00:12]} cxd4 {[%clk
01:31:43]} {[%emt 00:00:05]} 4. Nxd4 {[%clk 01:32:08]} {[%emt 00:00:03]} Nf6
{[%clk 01:32:04]} {[%emt 00:00:08]} 5. Nc3 {[%clk 01:32:18]} {[%emt 00:00:20]}
a6 {[%clk 01:32:30]} {[%emt 00:00:05]} 6. Be2 {[%clk 01:32:18]} {[%emt
00:00:30]} e5 {[%clk 01:32:47]} {[%emt 00:00:13]} 7. Nf3 {[%clk 01:31:17]}
{[%emt 00:01:30]} Be7 {[%clk 01:32:55]} {[%emt 00:00:21]} 8. h3 {[%clk
01:31:32]} {[%emt 00:00:15]} Be6 {[%clk 01:32:44]} {[%emt 00:00:41]} 9. Be3
{[%clk 01:30:32]} {[%emt 00:01:31]} Nbd7 {[%clk 01:32:06]} {[%emt 00:01:06]} 10.
Ng5 {[%clk 01:30:42]} {[%emt 00:00:21]} h6 {[%clk 01:32:16]} {[%emt 00:00:19]}
11. Nxe6 {[%clk 01:30:58]} {[%emt 00:00:14]} fxe6 {[%clk 01:32:38]} {[%emt
00:00:07]} 12. Bh5+ {[%clk 01:31:10]} {[%emt 00:00:19]} Kf8 {[%clk 01:31:57]}
{[%emt 00:01:12]} 13. O-O {[%clk 01:30:50]} {[%emt 00:00:50]} Nxh5 {[%clk
01:30:55]} {[%emt 00:01:31]} 14. Qxh5 {[%clk 01:31:14]} {[%emt 00:00:06]} Qe8
{[%clk 01:31:18]} {[%emt 00:00:07]} 15. Qg4 {[%clk 01:30:53]} {[%emt 00:00:50]}
Qf7 {[%clk 01:29:09]} {[%emt 00:02:40]} 16. f4 {[%clk 01:30:31]} {[%emt
00:00:52]} exf4 {[%clk 01:27:50]} {[%emt 00:01:48]} 17. Bxf4 {[%clk 01:28:31]}
{[%emt 00:02:30]} Nf6 {[%clk 01:28:08]} {[%emt 00:00:12]} 18. Qg3 {[%clk
01:25:43]} {[%emt 00:03:18]} Rd8 {[%clk 01:25:36]} {[%emt 00:03:01]} 19. Rad1
{[%clk 01:23:22]} {[%emt 00:02:51]} Nh5 {[%clk 01:22:08]} {[%emt 00:03:59]} 20.
Qh2 {[%clk 01:23:22]} {[%emt 00:00:30]} Nxf4 {[%clk 01:22:04]} {[%emt
00:00:34]} 21. Rxf4 {[%clk 01:23:36]} {[%emt 00:00:16]} Bf6 {[%clk 01:22:32]}
{[%emt 00:00:02]} 22. e5 {[%clk 01:23:57]} {[%emt 00:00:09]} Ke7 {[%clk
01:22:09]} {[%emt 00:00:53]} 23. exf6+ {[%clk 01:23:55]} {[%emt 00:00:33]} gxf6
{[%clk 01:22:36]} {[%emt 00:00:02]} 24. Qg3 {[%clk 01:23:10]} {[%emt 00:01:15]}
Rhg8 {[%clk 01:22:56]} {[%emt 00:00:11]} 25. Qf3 {[%clk 01:23:04]} {[%emt
00:00:35]} Qg6 {[%clk 01:22:49]} {[%emt 00:00:36]} 26. Qxb7+ {[%clk 01:23:04]}
{[%emt 00:00:31]} Rd7 {[%clk 01:23:18]} {[%emt 00:00:01]} 27. Qe4 {[%clk
01:23:01]} {[%emt 00:00:33]} Qxe4 {[%clk 01:23:23]} {[%emt 00:00:26]} 28. Rxe4
{[%clk 01:23:23]} {[%emt 00:00:07]} Rb7 {[%clk 01:23:26]} {[%emt 00:00:27]} 29.
b3 {[%clk 01:23:07]} {[%emt 00:00:46]} Rc7 {[%clk 01:23:42]} {[%emt 00:00:14]}
30. Nd5+ {[%clk 01:23:33]} {[%emt 00:00:04]} Kd7 {[%clk 01:23:58]} {[%emt
00:00:13]} 31. Nxf6+ {[%clk 01:23:55]} {[%emt 00:00:07]} Ke7 {[%clk 01:24:21]}
{[%emt 00:00:08]} 32. Nxg8+ {[%clk 01:24:17]} {[%emt 00:00:08]} Kf7 {[%clk
01:24:42]} {[%emt 00:00:08]} 33. Nxh6+ {[%clk 01:24:44]} {[%emt 00:00:05]} Ke7
{[%clk 01:24:49]} {[%emt 00:00:22]} 34. Nf5+ {[%clk 01:25:06]} {[%emt
00:00:08]} Kf6 {[%clk 01:25:03]} {[%emt 00:00:17]} 35. Nxd6 {[%clk 01:25:28]}
{[%emt 00:00:08]} Rxc2 {[%clk 01:25:27]} {[%emt 00:00:06]} 36. Rde1 {[%clk
01:25:47]} {[%emt 00:00:10]} e5 {[%clk 01:25:38]} {[%emt 00:00:19]} 37. Rxe5
{[%clk 01:26:09]} {[%emt 00:00:08]} Rxa2 {[%clk 01:26:03]} {[%emt 00:00:05]} 38.
Rf5+ {[%clk 01:26:20]} {[%emt 00:00:18]} Kg6 {[%clk 01:26:25]} {[%emt
00:00:08]} 39. Re6+ {[%clk 01:26:45]} {[%emt 00:00:05]} Kg7 {[%clk 01:26:45]}
{[%emt 00:00:11]} 40. Rf7+ {[%clk 01:27:11]} {[%emt 00:00:03]} Kg8 {[%clk
01:27:08]} {[%emt 00:00:07]} 41. Re8# {[%clk 01:27:38]} {[%emt 00:00:03]} 1-0

[Event "Mistrovství Čech mládeže 2023 - HD14"]
[Site "Harrachov, Czech Republic"]
[Date "2023.10.23"]
[Round "4.14"]
[White "Čech, Nicolas"]
[Black "Chon, Jeremy"]
[Result "0-1"]
[TimeControl "90m + 30s"]
[WhiteElo "1399"]
[BlackElo "1538"]

1. e4 {[%clk 01:30:57]} {[%emt 00:00:03]} c5 {[%clk 01:31:00]} {[%emt
00:00:01]} 2. Nf3 {[%clk 01:31:18]} {[%emt 00:00:09]} g6 {[%clk 01:31:30]} 3.
d4 {[%clk 01:31:37]} {[%emt 00:00:11]} cxd4 {[%clk 01:31:59]} {[%emt 00:00:01]}
4. Qxd4 {[%clk 01:31:52]} {[%emt 00:00:15]} Nf6 {[%clk 01:32:27]} 5. e5 {[%clk
01:31:32]} {[%emt 00:00:51]} Nc6 {[%clk 01:32:56]} 6. Qa4 {[%clk 01:25:41]}
{[%emt 00:06:23]} Nd5 {[%clk 01:33:22]} 7. Qb3 {[%clk 01:21:52]} {[%emt
00:04:24]} Nc7 {[%clk 01:33:14]} 8. Nc3 {[%clk 01:21:01]} {[%emt 00:01:58]} Bg7
{[%clk 01:33:13]} 9. Bc4 {[%clk 01:20:03]} {[%emt 00:01:59]} Ne6 {[%clk
01:32:39]} 10. Bxe6 {[%clk 01:19:21]} {[%emt 00:02:16]} dxe6 {[%clk 01:32:11]}
11. Bf4 {[%clk 01:18:48]} {[%emt 00:02:00]} O-O {[%clk 01:31:15]} {[%emt
00:01:27]} 12. O-O {[%clk 01:18:38]} {[%emt 00:00:40]} Qa5 {[%clk 01:25:51]}
{[%emt 00:05:54]} 13. Rfe1 {[%clk 01:18:05]} {[%emt 00:01:02]} b6 {[%clk
01:23:21]} {[%emt 00:03:00]} 14. Qb5 {[%clk 01:16:02]} {[%emt 00:02:33]} Bb7
{[%clk 01:22:14]} {[%emt 00:01:37]} 15. Qxa5 {[%clk 01:15:21]} {[%emt
00:01:11]} Nxa5 {[%clk 01:22:38]} {[%emt 00:00:06]} 16. Rad1 {[%clk 01:10:38]}
{[%emt 00:05:12]} Bxf3 {[%clk 01:20:26]} {[%emt 00:02:43]} 17. gxf3 {[%clk
01:10:51]} {[%emt 00:00:17]} Rfc8 {[%clk 01:10:41]} {[%emt 00:10:15]} 18. Re2
{[%clk 01:07:40]} {[%emt 00:03:40]} Nc4 {[%clk 01:06:02]} {[%emt 00:05:10]} 19.
b3 {[%clk 00:56:07]} {[%emt 00:12:02]} Nxe5 {[%clk 01:02:31]} {[%emt 00:04:01]}
20. Bxe5 {[%clk 00:55:47]} {[%emt 00:00:49]} Bxe5 {[%clk 01:02:58]} {[%emt
00:00:05]} 21. Rxe5 {[%clk 00:56:02]} {[%emt 00:00:15]} Rxc3 {[%clk 01:03:23]}
{[%emt 00:00:04]} 22. Rd2 {[%clk 00:54:12]} {[%emt 00:02:21]} Rxf3 {[%clk
01:03:35]} {[%emt 00:00:18]} 23. Re3 {[%clk 00:52:59]} {[%emt 00:01:42]} Rxe3
{[%clk 01:03:44]} {[%emt 00:00:21]} 24. fxe3 {[%clk 00:53:15]} {[%emt
00:00:14]} Kf8 {[%clk 01:03:20]} 25. Rd7 {[%clk 00:52:46]} {[%emt 00:01:54]}
Ke8 {[%clk 01:03:39]} 26. Rb7 {[%clk 00:52:46]} {[%emt 00:00:38]} Kd8 {[%clk
01:03:29]} 27. c4 {[%emt 00:02:01]} f5 {[%clk 01:03:01]} 28. Kf2 {[%clk
00:53:10]} {[%emt 00:00:15]} Ke8 {[%clk 01:03:21]} {[%emt 00:00:11]} 29. h4
{[%clk 00:52:52]} {[%emt 00:00:47]} Kf7 {[%clk 01:03:39]} {[%emt 00:00:12]} 30.
Kf3 {[%clk 00:52:49]} {[%emt 00:00:34]} Kf6 {[%clk 01:03:25]} {[%emt 00:00:43]}
31. e4 {[%clk 00:51:58]} {[%emt 00:01:21]} h6 {[%clk 01:01:49]} {[%emt
00:02:06]} 32. e5+ {[%clk 00:49:42]} {[%emt 00:02:46]} Kxe5 {[%clk 01:00:32]}
{[%emt 00:01:47]} 33. Rxe7 {[%clk 00:50:03]} {[%emt 00:00:10]} g5 {[%clk
01:00:11]} {[%emt 00:00:50]} 34. hxg5 {[%clk 00:49:43]} {[%emt 00:00:50]} hxg5
{[%clk 01:00:40]} 35. Rc7 {[%clk 00:48:41]} {[%emt 00:01:33]} g4+ {[%clk
01:00:05]} {[%emt 00:01:05]} 36. Kg3 {[%clk 00:48:48]} {[%emt 00:00:22]} Rg8
{[%clk 00:53:59]} {[%emt 00:06:36]} 37. Rf7 {[%clk 00:47:13]} {[%emt 00:02:05]}
Ke4 {[%clk 00:54:03]} {[%emt 00:00:26]} 38. Rxa7 {[%emt 00:01:31]} f4+ {[%clk
00:54:25]} {[%emt 00:00:06]} 39. Kf2 {[%clk 00:46:37]} {[%emt 00:00:06]} g3+
{[%clk 00:54:48]} {[%emt 00:00:07]} 40. Kg1 {[%clk 00:46:10]} {[%emt 00:00:57]}
g2 {[%clk 00:54:08]} {[%emt 00:01:10]} 41. Rd7 {[%clk 00:45:32]} {[%emt
00:01:08]} f3 {[%clk 00:53:59]} {[%emt 00:00:40]} 42. Rd1 {[%clk 00:45:34]}
{[%emt 00:00:28]} Rh8 {[%clk 00:53:44]} {[%emt 00:00:44]} 43. Kf2 {[%clk
00:45:17]} {[%emt 00:00:46]} Rh1 {[%clk 00:54:07]} {[%emt 00:00:08]} 44. Rg1
{[%clk 00:45:46]} {[%emt 00:00:01]} Rxg1 {[%clk 00:54:17]} {[%emt 00:00:20]} 45.
Kxg1 {[%clk 00:46:01]} {[%emt 00:00:14]} Ke3 {[%emt 00:00:17]} 0-1